lending/lending_fUSD_20250122
["ID","MTS","AMOUNT","RATE_DAILY","PERIOD"]
[350024077,1737574247147,-904.63,0.00021002,2]
[350024078,1737574247156,-623.71,0.00021002,2]
[350024079,1737574247165,-1292.51,0.00021002,2]
[350024080,1737574247174,-500.0,0.00021002,2]
[350024081,1737574247183,-500.0,0.00021002,2]
[350024082,1737574247191,-500.0,0.00021002,2]
[350024083,1737574247201,-701.11,0.00021002,2]
[350024084,1737574247209,-736.82,0.00021002,2]
[350024085,1737574247218,-500.0,0.00021002,2]
[350024086,1737574247227,-598.58,0.00021002,2]
[350024087,1737574247237,-530.37,0.00021002,2]
[350024088,1737574247246,-1092.36,0.00021002,2]
[350024089,1737574247255,-760.34,0.00021002,2]
[350024090,1737574247265,-636.49,0.00021002,2]
[350024091,1737574247274,-500.0,0.00021002,2]
[350024092,1737574247283,-1995.00248045,0.00021003,2]
[350024093,1737574247292,-4236.25736077,0.0002101,2]
[350024094,1737574247302,-500.0,0.00021019,2]
[350024095,1737574247311,-500.0,0.00021019,2]
[350024096,1737574247324,-500.0,0.00021019,2]
[350024097,1737574247335,-500.0,0.00021019,2]
[350024098,1737574247344,-582.44455713,0.00021019,2]
[350024099,1737574247354,-500.0,0.00021019,2]
[350024100,1737574247363,-500.0,0.00021019,2]
[350024101,1737574247373,-500.0,0.00021019,2]
[350024102,1737574247382,-500.0,0.00021019,2]
[350024103,1737574247392,-500.0,0.00021019,2]
[350024104,1737574247402,-500.0,0.00021019,2]
[350024105,1737574247412,-500.0,0.00021019,2]
[350024106,1737574247421,-500.0,0.00021019,2]
[350024107,1737574247431,-500.0,0.00021019,2]
[350024108,1737574247440,-500.0,0.00021019,2]
[350024109,1737574247449,-500.0,0.00021019,2]
[350024110,1737574247458,-500.0,0.00021019,2]
[350024111,1737574247467,-586.1947267,0.00021019,2]
[350024112,1737574247477,-500.0,0.00021019,2]
[350024113,1737574247486,-588.19,0.00021019,2]
[350024114,1737574247496,-500.0,0.00021019,2]
[350024115,1737574247505,-1075.52,0.00021019,2]
[350024116,1737574247515,-500.0,0.00021019,2]
[350024117,1737574247524,-551.51,0.00021019,2]
[350024118,1737574247533,-500.0,0.00021019,2]
[350024119,1737574247542,-500.0,0.00021019,2]
[350024120,1737574247551,-500.0,0.00021019,2]
[350024121,1737574247560,-1205.34,0.00021019,2]
[350024122,1737574247570,-500.0,0.00021019,2]
[350024123,1737574247720,-1162.78,0.00021019,2]
[350024124,1737574247730,-500.0,0.00021019,2]
[350024125,1737574247739,-500.0,0.00021019,2]
[350024126,1737574247748,-500.0,0.00021019,2]
[350024127,1737574247759,-518.75,0.00021019,2]
[350024128,1737574247768,-500.0,0.00021019,2]
[350024129,1737574247777,-500.0,0.00021019,2]
[350024130,1737574247787,-500.0,0.00021019,2]
[350024131,1737574247797,-500.0,0.00021019,2]
[350024132,1737574247806,-500.57,0.00021019,2]
[350024133,1737574247815,-500.0,0.00021019,2]
[350024134,1737574247825,-522.49,0.00021019,2]
[350024135,1737574247837,-1112.07,0.00021019,2]
[350024136,1737574247846,-500.0,0.00021019,2]
[350024137,1737574247855,-2130.4,0.00021019,2]
[350024138,1737574247864,-500.0,0.00021019,2]
[350024139,1737574247875,-500.0,0.00021019,2]
[350024140,1737574247884,-500.0,0.00021019,2]
[350024141,1737574247893,-761.5,0.00021019,2]
[350024142,1737574247902,-652.49,0.00021019,2]
[350024143,1737574247912,-500.0,0.00021019,2]
[350024144,1737574247922,-843.63,0.00021019,2]
[350024145,1737574247931,-537.38,0.00021019,2]
[350024146,1737574247940,-517.07,0.0002102,2]
[350024147,1737574247950,-507.19,0.0002102,2]
[350024148,1737574247959,-500.0,0.0002102,2]
[350024149,1737574247968,-846.13,0.0002102,2]
[350024150,1737574247977,-1041.43,0.0002102,2]
[350024151,1737574247987,-459.032501,0.0002102,2]
[350024152,1737574247996,-151.0,0.0002102,2]
[350024153,1737574248005,-459.032501,0.0002102,2]
[350024154,1737574248015,-1995.00248045,0.00021038,2]
[350024155,1737574248024,-2094.0,0.00021052,2]
[350024156,1737574248034,-1995.00248045,0.00021072,2]
[350024157,1737574248043,-178.94883956,0.0002109,2]
[350024158,1737574248053,-500.0,0.00021094,2]
[350024159,1737574248062,-500.0,0.00021094,2]
[350024160,1737574248071,-500.0,0.00021094,2]
[350024161,1737574248080,-500.0,0.00021094,2]
[350024162,1737574248089,-500.0,0.00021094,2]
[350024163,1737574248098,-500.0,0.00021094,2]
[350024164,1737574248107,-500.0,0.00021094,2]
[350024165,1737574248116,-1168.66,0.000211,2]
[350024166,1737574248126,-366.0,0.000211,2]
[350024167,1737574248135,-745.0,0.000211,2]
[350024168,1737574248144,-862.0,0.000211,2]
[350024169,1737574248153,-1995.00248045,0.00021107,2]
[350024170,1737574248162,-1995.00248045,0.00021141,2]
[350024171,1737574248171,-1995.00248045,0.00021176,2]
[350024172,1737574248181,-2129.80601603,0.00021176,2]
[350024173,1737574248190,-500.0,0.00021178,2]
[350024174,1737574248199,-1995.00248045,0.0002121,2]
[350024175,1737574248209,-4236.25736077,0.00021233,2]
[350024176,1737574248218,-1995.00248045,0.00021245,2]
[350024177,1737574248227,-500.0,0.00021275,2]
[350024178,1737574248237,-500.0,0.00021275,2]
[350024179,1737574248246,-500.0,0.00021275,2]
[350024180,1737574248255,-650.18,0.00021275,2]
[350024181,1737574248265,-500.0,0.00021275,2]
[350024182,1737574248274,-500.0,0.00021275,2]
[350024183,1737574248283,-651.66,0.00021275,2]
[350024184,1737574248292,-500.0,0.00021275,2]
[350024185,1737574248302,-500.0,0.00021275,2]
[350024186,1737574248311,-1115.68,0.00021275,2]
[350024187,1737574248320,-1496.95,0.00021275,2]
[350024188,1737574248330,-500.0,0.00021275,2]
[350024189,1737574248339,-500.0,0.00021275,2]
[350024190,1737574248348,-461.27114215,0.00021275,2]
[350024191,1737574248358,-555.71,0.00021275,2]
[350024192,1737574248367,-496.581386,0.00021275,2]
[350024193,1737574248377,-673.217808,0.00021276,2]
[350024194,1737574248386,-685.12,0.00021276,2]
[350024195,1737574248395,-500.0,0.00021276,2]
[350024196,1737574248404,-500.0,0.00021276,2]
[350024197,1737574248413,-791.05,0.00021276,2]
[350024198,1737574248423,-500.0,0.00021276,2]
[350024199,1737574248432,-627.2,0.00021276,2]
[350024200,1737574248441,-811.94,0.00021276,2]
[350024201,1737574248451,-1439.69,0.00021276,2]
[350024202,1737574248460,-772.74,0.00021276,2]
[350024203,1737574248469,-613.25,0.00021276,2]
[350024204,1737574248479,-1088.93,0.00021276,2]
[350024205,1737574248490,-943.23,0.00021276,2]
[350024206,1737574248500,-500.0,0.00021276,2]
[350024207,1737574248509,-1218.15,0.00021276,2]
[350024208,1737574248521,-734.65,0.00021276,2]
[350024209,1737574248530,-500.0,0.00021276,2]
[350024210,1737574248540,-643.10158597,0.00021276,2]
[350024211,1737574248549,-500.0,0.00021276,2]
[350024212,1737574248558,-904.63,0.00021276,2]
[350024213,1737574248568,-623.71,0.00021276,2]
[350024214,1737574248577,-1292.51,0.00021276,2]
[350024215,1737574248586,-500.0,0.00021276,2]
[350024216,1737574248596,-450.07055977,0.00021276,2]
[350024217,1737574248607,-500.0,0.00021276,2]
[350024218,1737574248619,-701.11,0.00021276,2]
[350024219,1737574248628,-736.82,0.00021276,2]
[350024220,1737574248637,-500.0,0.00021276,2]
[350024221,1737574248648,-598.58,0.00021276,2]
[350024222,1737574248658,-530.37,0.00021276,2]
[350024223,1737574248667,-1092.36,0.00021276,2]
[350024224,1737574248676,-760.34,0.00021276,2]
[350024225,1737574248686,-636.49,0.00021276,2]
[350024226,1737574248695,-500.0,0.00021276,2]
[350024227,1737574248704,-1995.00248045,0.00021279,2]
[350024228,1737574248714,-500.0,0.00021293,2]
[350024229,1737574248723,-500.0,0.00021293,2]
[350024230,1737574248732,-500.0,0.00021293,2]
[350024231,1737574248741,-500.0,0.00021293,2]
[350024232,1737574248751,-500.0,0.00021293,2]
[350024233,1737574248761,-500.0,0.00021293,2]
[350024234,1737574248772,-500.0,0.00021293,2]
[350024235,1737574248781,-500.0,0.00021293,2]
[350024236,1737574248791,-500.0,0.00021293,2]
[350024237,1737574248801,-500.0,0.00021293,2]
[350024238,1737574248810,-500.0,0.00021293,2]
[350024239,1737574248823,-500.0,0.00021293,2]
[350024240,1737574248836,-500.0,0.00021293,2]
[350024241,1737574248846,-500.0,0.00021293,2]
[350024242,1737574248855,-500.0,0.00021293,2]
[350024243,1737574248864,-611.75470082,0.00021293,2]
[350024244,1737574248875,-151.0,0.00021293,2]
[350024245,1737574248883,-500.0,0.00021293,2]
[350024246,1737574248893,-588.19,0.00021293,2]
[350024247,1737574248902,-500.0,0.00021293,2]
[350024248,1737574248913,-1075.52,0.00021293,2]
[350024249,1737574248922,-500.0,0.00021293,2]
[350024250,1737574248931,-551.51,0.00021293,2]
[350024251,1737574248940,-377.06232579,0.00021293,2]
[350024252,1737574248950,-500.0,0.00021293,2]
[350024253,1737574248959,-500.0,0.00021293,2]
[350024254,1737574248968,-1205.34,0.00021293,2]
[350024255,1737574248978,-500.0,0.00021293,2]
[350024256,1737574248987,-1162.78,0.00021293,2]
[350024257,1737574248997,-500.0,0.00021293,2]
[350024258,1737574249008,-500.0,0.00021293,2]
[350024259,1737574249018,-500.0,0.00021293,2]
[350024260,1737574249027,-518.75,0.00021293,2]
[350024261,1737574249037,-500.0,0.00021293,2]
[350024262,1737574249047,-500.0,0.00021293,2]
[350024263,1737574249057,-500.0,0.00021293,2]
[350024264,1737574249066,-500.0,0.00021293,2]
[350024265,1737574249076,-500.57,0.00021293,2]
[350024266,1737574249085,-500.0,0.00021293,2]
[350024267,1737574249094,-522.49,0.00021293,2]
[350024268,1737574249103,-1112.07,0.00021293,2]
[350024269,1737574249112,-500.0,0.00021293,2]
[350024270,1737574249121,-2130.4,0.00021293,2]
[350024271,1737574249131,-617.68631055,0.00021293,2]
[350024272,1737574249140,-500.0,0.00021293,2]
[350024273,1737574249149,-306.33691358,0.00021293,2]
[350024274,1737574249159,-761.5,0.00021293,2]
[350024275,1737574249168,-652.49,0.00021293,2]
[350024276,1737574249177,-500.0,0.00021293,2]
[350024277,1737574249186,-843.63,0.00021293,2]
[350024278,1737574249195,-537.38,0.00021293,2]
[350024279,1737574249205,-517.07,0.00021294,2]
[350024280,1737574249215,-507.19,0.00021294,2]
[350024281,1737574249224,-201.16,0.00021294,2]
[350024282,1737574249233,-846.13,0.00021294,2]
[350024283,1737574249242,-1041.43,0.00021294,2]
[350024284,1737574249252,-1995.00248045,0.00021314,2]
[350024285,1737574249261,-1995.00248045,0.00021348,2]
[350024286,1737574249272,-150.0,0.00021349,2]
[350024287,1737574249282,-1881.39375276,0.0002135,2]
[350024288,1737574249292,-906.0,0.00021368,2]
[350024289,1737574249302,-332.977,0.00021368,2]
[350024290,1737574249312,-3984.0,0.00021368,2]
[350024291,1737574249322,-538.0,0.00021368,2]
[350024292,1737574249332,-1106.0,0.00021368,2]
[350024293,1737574249341,-2013.0,0.00021368,2]
[350024294,1737574249351,-3903.0,0.00021368,2]
[350024295,1737574249361,-150.0,0.00021368,2]
[350024296,1737574249370,-1267.0,0.00021368,2]
[350024297,1737574249380,-151.0,0.00021368,2]
[350024298,1737574249389,-1176.0,0.00021368,2]
[350024299,1737574249398,-500.0,0.00021368,2]
[350024300,1737574249407,-500.0,0.00021368,2]
[350024301,1737574249416,-500.0,0.00021368,2]
[350024302,1737574249425,-500.0,0.00021368,2]
[350024303,1737574249434,-500.0,0.00021368,2]
[350024304,1737574249443,-500.0,0.00021368,2]
[350024305,1737574249452,-500.0,0.00021368,2]
[350024306,1737574249461,-1907.0,0.00021377,2]
[350024307,1737574249471,-1995.00248045,0.00021383,2]
[350024308,1737574249480,-459.032501,0.00021383,2]
[350024309,1737574249489,-257.955464,0.00021383,2]
[350024310,1737574249498,-459.032501,0.00021383,2]
[350024311,1737574249507,-508.03,0.00021411,7]
[350024312,1737574249517,-508.03,0.00021411,7]
[350024313,1737574249526,-508.03,0.00021411,7]
[350024314,1737574249535,-508.03,0.00021411,7]
[350024315,1737574249544,-1995.00248045,0.00021417,2]
[350024316,1737574249553,-150.0,0.00021426,2]
[350024317,1737574249562,-250.0,0.00021426,2]
[350024318,1737574249571,-250.0,0.00021426,2]
[350024319,1737574249580,-150.0,0.00021426,2]
[350024320,1737574249589,-1995.00248045,0.00021452,2]
[350024321,1737574249598,-4236.25736077,0.00021455,2]
[350024322,1737574249607,-1995.00248045,0.00021486,2]
[350024323,1737574249617,-2110.0,0.000215,2]
[350024324,1737574249626,-726.4,0.00021511,2]
[350024325,1737574249635,-536.34080642,0.00021521,2]
[350024326,1737574249774,-326.98,0.00021521,2]
[350024327,1737574458039,250.39,0.00010137,2]
[350024329,1737575353374,-550.0,0.00015,2]
[350024330,1737575360404,-250.39,0.00016813,2]
[350024331,1737575360427,-905.83,0.00017808,2]
[350024336,1737575432115,-2081.0,0.00018,2]
[350024337,1737575432124,-635.48187218,0.00018448,2]
[350024338,1737575432134,-500.0,0.00018548,2]
[350024339,1737575432143,-635.48187217,0.00019264,2]
[350024340,1737575432153,-250.0,0.00019558,2]
[350024341,1737575432163,-165.26,0.00019562,2]
[350024342,1737575432172,-300.0,0.0001958,2]
[350024343,1737575432182,-819.10979047,0.00019581,2]
[350024344,1737575432193,-3226.80004824,0.00019581,2]
[350024345,1737575432221,-12591.69016129,0.00019581,2]
[350024346,1737575432230,-215.0,0.00019687,2]
[350024347,1737575432243,-13948.44,0.00019757,2]
[350024348,1737575432252,-250.0,0.00019768,2]
[350024349,1737575432261,-161.02,0.00019937,30]
[350024350,1737575432270,-1143.0,0.0002,2]
[350024351,1737575432279,-21095.58044802,0.0002,5]
[350024352,1737575432378,-718.78087629,0.0002,5]
[350024353,1737575432432,-623.01792,0.0002,5]
[350024382,1737575437965,-329.5347003,0.0002,5]
[350024383,1737575437977,-3212.85344129,0.0002,5]
[350024384,1737575438072,-2095.182,0.0002,5]
[350024385,1737575438127,-1816.98600807,0.0002,5]
[350024386,1737575438144,-74.06308806,0.0002,5]
[350024387,1737575438154,-5366.30425193,0.0002,2]
[350024388,1737575438163,-905.83,0.00020072,2]
[350024389,1737575438174,-635.48187217,0.00020079,2]
[350024390,1737575438183,-1000.0,0.000201,2]
[350024391,1737575438192,-694.0,0.000201,11]
[350024392,1737575438201,-547.93,0.00020125,2]
[350024393,1737575438211,-1741.894,0.00020178,2]
[350024394,1737575438220,-300.0,0.00020178,2]
[350024395,1737575438229,-500.0,0.00020179,2]
[350024396,1737575438238,-500.0,0.00020179,2]
[350024397,1737575438249,-500.0,0.00020179,2]
[350024398,1737575438259,-500.0,0.00020179,2]
[350024399,1737575438268,-500.0,0.00020179,2]
[350024400,1737575438277,-594.58271872,0.00020179,2]
[350024401,1737575438286,-500.0,0.00020179,2]
[350024402,1737575438297,-500.0,0.00020179,2]
[350024403,1737575438314,-500.0,0.00020179,2]
[350024404,1737575438325,-500.0,0.00020179,2]
[350024405,1737575438334,-500.0,0.00020179,2]
[350024406,1737575438343,-500.0,0.00020179,2]
[350024407,1737575438353,-500.0,0.00020179,2]
[350024408,1737575438362,-236.3803771,0.00020179,2]
[350024409,1737575438372,-500.0,0.00020179,2]
[350024410,1737575438382,-500.0,0.00020179,2]
[350024411,1737575438395,-500.0,0.00020179,2]
[350024412,1737575438405,-500.0,0.00020179,2]
[350024413,1737575438414,-500.0,0.00020179,2]
[350024414,1737575438424,-500.0,0.00020179,2]
[350024415,1737575438433,-500.0,0.00020179,2]
[350024416,1737575438443,-500.0,0.00020179,2]
[350024418,1737575438452,-500.0,0.00020179,2]
[350024420,1737575438462,-500.0,0.00020179,2]
[350024422,1737575438471,-450.04052846,0.00020179,2]
[350024424,1737575438480,-500.0,0.00020179,2]
[350024426,1737575438489,-500.0,0.00020179,2]
[350024428,1737575438499,-186.76292219,0.00020179,2]
[350024430,1737575438508,-500.0,0.00020179,2]
[350024432,1737575438517,-500.0,0.00020179,2]
[350024434,1737575438527,-500.0,0.00020179,2]
[350024436,1737575438536,-500.0,0.00020179,2]
[350024438,1737575438545,-500.0,0.00020179,2]
[350024440,1737575438554,-500.0,0.00020179,2]
[350024442,1737575438564,-500.0,0.00020179,2]
[350024444,1737575438573,-500.0,0.00020179,2]
[350024447,1737575438583,-500.0,0.00020179,2]
[350024449,1737575438592,-500.0,0.00020179,2]
[350024451,1737575438601,-500.0,0.00020179,2]
[350024453,1737575438610,-500.0,0.00020179,2]
[350024457,1737575438620,-500.0,0.00020179,2]
[350024460,1737575438629,-500.0,0.00020179,2]
[350024464,1737575438641,-500.0,0.00020179,2]
[350024467,1737575438650,-500.0,0.00020179,2]
[350024470,1737575438659,-500.0,0.00020179,2]
[350024473,1737575438668,-500.0,0.00020179,2]
[350024474,1737575438677,-500.0,0.00020179,2]
[350024477,1737575438687,-500.0,0.00020179,2]
[350024479,1737575438697,-500.0,0.00020179,2]
[350024480,1737575438706,-500.0,0.00020179,2]
[350024481,1737575438715,-500.0,0.00020179,2]
[350024483,1737575438724,-500.0,0.00020179,2]
[350024485,1737575438733,-500.0,0.00020179,2]
[350024487,1737575438742,-467.9236459,0.00020179,2]
[350024489,1737575438751,-500.0,0.00020179,2]
[350024491,1737575438760,-500.0,0.00020179,2]
[350024493,1737575438769,-500.0,0.00020179,2]
[350024495,1737575438777,-500.0,0.00020179,2]
[350024497,1737575438787,-500.0,0.00020179,2]
[350024499,1737575438795,-216.16153607,0.00020179,2]
[350024501,1737575438805,-412.78044229,0.00020179,2]
[350024503,1737575438814,-500.0,0.00020179,2]
[350024505,1737575438823,-500.0,0.00020179,2]
[350024507,1737575438832,-500.0,0.00020197,2]
[350024509,1737575438841,-347.93,0.00020308,2]
[350024511,1737575438850,-177.3,0.00020331,2]
[350024513,1737575438859,-219.96492553,0.00020362,2]
[350024515,1737575438869,-1000.0,0.00020409,2]
[350024517,1737575438878,-500.0,0.00020453,2]
[350024519,1737575438888,-500.0,0.00020453,2]
[350024521,1737575438898,-285.42343054,0.00020453,2]
[350024523,1737575438907,-500.0,0.00020453,2]
[350024525,1737575438916,-500.0,0.00020453,2]
[350024527,1737575438925,-500.0,0.00020453,2]
[350024529,1737575438934,-500.0,0.00020453,2]
[350024531,1737575438944,-500.0,0.00020453,2]
[350024533,1737575438955,-500.0,0.00020453,2]
[350024535,1737575438970,-500.0,0.00020453,2]
[350024538,1737575438979,-500.0,0.00020453,2]
[350024540,1737575438989,-500.0,0.00020453,2]
[350024542,1737575438999,-500.0,0.00020453,2]
[350024544,1737575439008,-500.0,0.00020453,2]
[350024545,1737575439018,-500.0,0.00020453,2]
[350024547,1737575439027,-500.0,0.00020453,2]
[350024549,1737575439040,-500.0,0.00020453,2]
[350024551,1737575439051,-500.0,0.00020453,2]
[350024553,1737575439060,-500.0,0.00020471,2]
[350024555,1737575439070,-6830.41425818,0.00020627,2]
[350024575,1737575439255,-8448.0876643,0.00020627,2]
[350024577,1737575439267,-2005.5106626,0.00020627,2]
[350024579,1737575439277,-1921.64734247,0.00020627,2]
[350024599,1737575441472,-418.5181,0.00020627,2]
[350024600,1737575441526,-3237.34951007,0.00020627,2]
[350024601,1737575441719,-390.242268,0.00020627,2]
[350024602,1737575441735,-3464.79537536,0.00020627,2]
[350024603,1737575441746,-1057.82542573,0.00020627,2]
[350024604,1737575441757,-308.62630872,0.00020627,2]
[350024605,1737575441768,-311.52574598,0.00020627,2]
[350024606,1737575441779,-2082.55078657,0.00020627,2]
[350024607,1737575441790,-5091.41538673,0.00020627,2]
[350024608,1737575441801,-1523.99015461,0.00020627,2]
[350024609,1737575441812,-425.16,0.00020627,2]
[350024610,1737575441840,-367.93120737,0.00020627,2]
[350024611,1737575441900,-374.60114396,0.00020627,2]
[350024612,1737575441912,-356.92278285,0.00020627,2]
[350024613,1737575441924,-989.19,0.00020627,2]
[350024614,1737575441950,-715.86815094,0.00020627,2]
[350024639,1737575443002,-3694.78702556,0.00020627,2]
[350024640,1737575443012,-500.0,0.00020727,2]
[350024641,1737575443022,-500.0,0.00020727,2]
[350024642,1737575443032,-500.0,0.00020727,2]
[350024643,1737575443041,-500.0,0.00020727,2]
[350024644,1737575443051,-500.0,0.00020727,2]
[350024645,1737575443061,-500.0,0.00020727,2]
[350024646,1737575443071,-500.0,0.00020727,2]
[350024647,1737575443080,-500.0,0.00020727,2]
[350024648,1737575443090,-500.0,0.00020727,2]
[350024649,1737575443100,-500.0,0.00020727,2]
[350024650,1737575443109,-500.0,0.00020727,2]
[350024651,1737575443119,-459.29268303,0.00020727,2]
[350024652,1737575443128,-405.62904079,0.00020727,2]
[350024653,1737575443137,-43.88137193,0.0002074,2]
[350024654,1737575443150,-456.11862807,0.0002074,2]
[350024655,1737575443169,-500.0,0.00020745,2]
[350024656,1737575443180,-1680.55,0.00020769,2]
[350024657,1737575443191,-4.13137183,0.0002079,2]
[350024658,1737575443209,-195.86862817,0.0002079,2]
[350024659,1737575443219,-2193.90073993,0.00020796,2]
[350024660,1737575443232,-340.34571334,0.00020796,2]
[350024661,1737575443242,-426.09811326,0.000208,2]
[350024662,1737575443255,-2534.24645327,0.00020802,2]
[350024663,1737575443266,-2534.24645327,0.00020804,2]
[350024664,1737575443276,-1707.36165688,0.00020806,2]
[350024665,1737575443287,-16697.91379615,0.00020815,2]
[350024666,1737575443297,-22258.56608018,0.00020823,2]
[350024667,1737575443307,-16697.91379615,0.00020828,2]
[350024668,1737575443317,-6380.81771717,0.0002083,2]
[350024669,1737575443332,-1112.14759465,0.0002083,2]
[350024670,1737575443344,-14765.60076836,0.0002083,2]
[350024671,1737575443355,-1707.36165688,0.00020842,2]
[350024672,1737575443364,-9936.61981776,0.00020847,2]
[350024673,1737575443376,-10308.05811845,0.00020847,2]
[350024674,1737575443386,-16697.91379615,0.0002085,2]
[350024675,1737575443397,-200.0,0.00020851,2]
[350024677,1737575443407,-16697.91379615,0.00020858,2]
[350024679,1737575443417,-200.0,0.00020859,2]
[350024681,1737575443427,-1707.36165688,0.00020862,2]
[350024683,1737575443436,-426.09811326,0.00020863,2]
[350024685,1737575443446,-1707.36165688,0.00020863,2]
[350024687,1737575443456,-22258.56608018,0.00020864,2]
[350024689,1737575443467,-426.09811326,0.00020865,2]
[350024691,1737575443476,-1540.31631028,0.00020869,2]
[350024693,1737575443485,-2534.24645327,0.0002087,2]
[350024695,1737575443495,-22258.56608018,0.00020873,2]
[350024697,1737575443504,-426.09811326,0.00020875,2]
[350024698,1737575443513,-200.0,0.00020886,2]
[350024700,1737575443523,-20244.67793621,0.00020888,2]
[350024703,1737575443533,-200.0,0.00020892,2]
[350024704,1737575443542,-22258.56608018,0.00020892,2]
[350024705,1737575443551,-16697.91379615,0.000209,2]
[350024707,1737575443561,-1312.70163023,0.000209,2]
[350024709,1737575443570,-20244.67793621,0.00020901,2]
[350024712,1737575443580,-12432.79444865,0.00020903,2]
[350024714,1737575443592,-7811.88348756,0.00020903,2]
[350024716,1737575443602,-200.0,0.00020906,2]
[350024718,1737575443612,-2534.24645327,0.00020914,2]
[350024720,1737575443621,-426.09811326,0.00020923,2]
[350024722,1737575443631,-1312.70162995,0.00020934,2]
[350024724,1737575443642,-389.58744396,0.00020935,2]
[350024737,1737575443754,-2044.44126637,0.00020935,2]
[350024748,1737575445984,-1285.0811569,0.00020935,2]
[350024749,1737575446038,-1411.41613829,0.00020935,2]
[350024750,1737575446093,-3539.8737111,0.00020935,2]
[350024751,1737575446257,-9716.42676,0.00020935,2]
[350024763,1737575599368,174.13,0.00010137,2]
[350024766,1737576484390,193.17,0.00010137,2]
[350024806,1737576632382,-419.32,0.00015,2]
[350024807,1737576632436,-130.68,0.00015,2]
[350024808,1737576632446,-2081.0,0.000181,2]
[350024809,1737576632456,-173.40642769,0.00018448,2]
[350024810,1737576632465,-34.30703843,0.00018548,2]
[350024811,1737576632476,-465.69296157,0.00018548,2]
[350024812,1737576632486,-435.75,0.00019751,2]
[350024813,1737576632495,-1773.2242745,0.00019752,2]
[350024814,1737576632647,-1568.01119169,0.00019752,2]
[350024815,1737576632659,-172.0,0.00019767,2]
[350024816,1737576632669,-176.6,0.00019775,2]
[350024817,1737576632678,-999.0,0.00019863,2]
[350024818,1737576632688,-632.5494,0.00019881,2]
[350024819,1737576632698,-1135.58,0.00019965,2]
[350024820,1737576632707,-300.0,0.0001998,2]
[350024821,1737576632716,-250.0,0.00019981,2]
[350024822,1737576632726,-153.49,0.00019981,2]
[350024823,1737576632735,-200.0,0.00019981,2]
[350024824,1737576632745,-161.02,0.00020089,30]
[350024825,1737576632754,-180.9,0.00020099,2]
[350024826,1737576632764,-441.61115998,0.00020171,2]
[350024827,1737576632775,-328.01300429,0.00020171,2]
[350024893,1737576638070,-230.37583573,0.00020171,2]
[350024894,1737576638080,-403.56501429,0.00020205,2]
[350024895,1737576638091,-23496.43498571,0.00020205,2]
[350024896,1737576638101,-250.0,0.00020241,2]
[350024897,1737576638110,-1629.72,0.00020272,2]
[350024898,1737576638122,-687.78,0.00020281,2]
[350024899,1737576638132,-1095.97449799,0.00020296,2]
[350024900,1737576638142,-3590.1400913,0.00020297,2]
[350024901,1737576638228,-5412.37804975,0.00020297,2]
[350024902,1737576638239,-150.0,0.00020297,2]
[350024903,1737576638249,-1176.0,0.00020297,2]
[350024904,1737576638259,-3892.0,0.00020297,2]
[350024905,1737576638268,-250.0,0.000203,2]
[350024906,1737576638278,-150.0,0.00020356,2]
[350024907,1737576638287,-150.0,0.00020356,2]
[350024908,1737576638296,-150.0,0.00020356,2]
[350024909,1737576638306,-427.87193083,0.00020423,2]